[Event "95th Caplin Hastings Congress"]
[Site "Hastings"]
[Date "2019.12.28"]
[Round "1.10"]
[White "Brouwer, Dennis"]
[Black "Petrov, Martin"]
[Result "0-1"]
[ECO "D32"]
[WhiteElo "2202"]
[BlackElo "2497"]
[Annotator "ChessBase"]
[PlyCount "92"]
[EventDate "2019.12.28"]
[EventType "swiss"]
[EventCountry "ENG"]
[SourceTitle "playchess.com"]
[Source "ChessBase"]
[SourceQuality "1"]
[TimeControl "40/6600+30:3000+30"]

1. c4 {[%emt 0:04:27]} e6 {[%emt 0:13:48]} 2. Nc3 {[%emt 0:06:19]} Nf6 {[%emt 0:07:12]} 3. Nf3 {[%emt 0:00:57]} c5 {[%emt 0:01:31]} 4. e3 {[%emt 0:01:31]} d5 {[%emt 0:01:14]} 5. cxd5 {[%emt 0:01:20]} exd5 {[%emt 0:02:50]} 6. d4 {[%emt 0:00:23]} Nc6 {[%emt 0:00:06]} 7. Bb5 {[%emt 0:00:24]} Be6 {[%emt 0:09:00]} 8. O-O {[%emt 0:01:29]} Rc8 {[%emt 0:00:56]} 9. Ne5 {[%emt 0:10:10]} Bd6 {[%emt 0:04:37]} 10. Nxc6 {[%emt 0:12:31]} bxc6 {[%emt 0:00:27]} 11. Be2 {[%emt 0:00:56]} h5 {[%emt 0:11:31]} 12. h3 {[%emt 0:20:58]} Qd7 {[%emt 0:09:06]} 13. dxc5 {[%emt 0:04:32]} Bxc5 {[%emt 0:01:53]} 14. Re1 {[%emt 0:16:04]} Bd6 {[%emt 0:09:16]} 15. Bf3 {[%emt 0:09:33]} Rd8 {[%emt 0:12:30]} 16. Qa4 {[%emt 0:05:45]} Be5 {[%emt 0:06:23]} 17. Ne2 {[%emt 0:07:15]} g5 {[%emt 0:02:17]} 18. Nd4 {[%emt 0:02:36]} c5 {[%emt 0:03:52]} 19. Qxd7+ {[%emt 0:00:24]} Bxd7 {[%emt 0:00:42]} 20. Bd1 {[%emt 0:03:19]} g4 {[%emt 0:03:33]} 21. h4 {[%emt 0:05:29]} O-O {[%emt 0:05:37]} 22. Ne2 {[%emt 0:01:29]} Rb8 {[%emt 0:04:18]} 23. Bb3 {[%emt 0:00:32]} Bf5 {[%emt 0:02:10]} 24. Nc3 {[%emt 0:00:54]} c4 {[%emt 0:00:55]} 25. Bd1 {[%emt 0:01:01]} Rfd8 {[%emt 0:00:40]} 26. Ne2 {[%emt 0:00:49]} Bxb2 {[%emt 0:01:33]} 27. Bxb2 {[%emt 0:00:03]} Rxb2 {[%emt 0:00:04]} 28. Nd4 {[%emt 0:00:07]} Bg6 {[%emt 0:00:17]} 29. Re2 {[%emt 0:00:56]} Rdb8 {[%emt 0:01:07]} 30. f3 {[%emt 0:01:35]} Rb1 {[%emt 0:02:49]} 31. Rxb1 {[%emt 0:00:03]} Rxb1 {[%emt 0:00:04]} 32. Re1 {[%emt 0:00:08]} c3 {[%emt 0:01:01]} 33. Kf2 {[%emt 0:00:18]} g3+ {[%emt 0:00:30]} 34. Ke2 {[%emt 0:00:30]} Rb2+ {[%emt 0:00:30]} 35. Kf1 {[%emt 0:00:30]} Rf2+ {[%emt 0:00:30]} 36. Kg1 {[%emt 0:00:30]} Rxa2 {[%emt 0:00:30]} 37. Bb3 {[%emt 0:00:30]} Rb2 {[%emt 0:00:30]} 38. Rc1 {[%emt 0:00:30]} a5 {[%emt 0:00:30]} 39. Bd1 {[%emt 0:00:30]} Nd7 {[%emt 0:00:30]} 40. e4 {[%emt 0:00:30]} dxe4 {[%emt 0:00:30]} 41. f4 {[%emt 0:50:30]} Nc5 {[%emt 0:50:30]} 42. f5 {[%emt 0:00:00]} Nd3 {[%emt 0:00:00]} 43. Ra1 {[%emt 0:00:00]} Bh7 {[%emt 0:00:00]} 44. Bc2 {[%emt 0:00:00]} Bxf5 {[%emt 0:00:00]} 45. Rxa5 {[%emt 0:00:00]} Bg6 {[%emt 0:00:00]} 46. Ra3 {[%emt 0:00:00]} Nb4 {[%emt 0:00:00]} 0-1

[Event "95th Caplin Hastings Congress"]
[Site "Hastings"]
[Date "2019.12.28"]
[Round "1.11"]
[White "Panchanathan, Magesh Chandran"]
[Black "Snape, Ian L"]
[Result "1-0"]
[ECO "E60"]
[WhiteElo "2479"]
[BlackElo "2196"]
[Annotator "ChessBase"]
[PlyCount "69"]
[EventDate "2019.12.28"]
[EventType "swiss"]
[EventCountry "ENG"]
[SourceTitle "playchess.com"]
[Source "ChessBase"]
[SourceQuality "1"]
[TimeControl "40/6600+30:3000+30"]

1. c4 {[%emt 0:00:28]} Nf6 {[%emt 0:00:06]} 2. Nf3 {[%emt 0:00:18]} g6 {[%emt 0:01:23]} 3. b3 {[%emt 0:15:26]} Bg7 {[%emt 0:00:23]} 4. Bb2 {[%emt 0:00:03]} O-O {[%emt 0:10:17]} 5. g3 {[%emt 0:00:30]} d6 {[%emt 0:00:30]} 6. d4 {[%emt 0:00:18]} Nbd7 {[%emt 0:01:08]} 7. Bg2 {[%emt 0:00:10]} e5 {[%emt 0:01:05]} 8. dxe5 {[%emt 0:00:34]} Ng4 {[%emt 0:00:16]} 9. O-O {[%emt 0:01:36]} Ndxe5 {[%emt 0:01:59]} 10. Nxe5 {[%emt 0:00:30]} dxe5 {[%emt 0:00:30]} 11. h3 {[%emt 0:03:29]} Nh6 {[%emt 0:00:44]} 12. Nc3 {[%emt 0:01:52]} c6 {[%emt 0:01:17]} 13. Ba3 {[%emt 0:05:36]} Re8 {[%emt 0:03:04]} 14. Ne4 {[%emt 0:00:09]} Qa5 {[%emt 0:10:24]} 15. Qc1 {[%emt 0:02:22]} Nf5 {[%emt 0:04:04]} 16. e3 {[%emt 0:00:10]} h5 {[%emt 0:02:06]} 17. Rd1 {[%emt 0:05:51]} Rd8 {[%emt 0:09:31]} 18. Qc3 {[%emt 0:11:35]} Rxd1+ {[%emt 0:08:00]} 19. Rxd1 {[%emt 0:00:07]} Qxa3 {[%emt 0:00:19]} 20. Rd8+ {[%emt 0:00:12]} Kh7 {[%emt 0:00:16]} 21. Ng5+ {[%emt 0:00:08]} Kh6 {[%emt 0:00:05]} 22. Nxf7+ {[%emt 0:00:08]} Kh7 {[%emt 0:00:04]} 23. c5 {[%emt 0:00:18]} Be6 {[%emt 0:17:22]} 24. Ng5+ {[%emt 0:03:03]} Kh6 {[%emt 0:00:05]} 25. Nxe6 {[%emt 0:03:45]} Rxd8 {[%emt 0:00:08]} 26. Nxd8 {[%emt 0:00:04]} Qxa2 {[%emt 0:02:28]} 27. Be4 {[%emt 0:00:25]} Qe2 {[%emt 0:10:41]} 28. Nxb7 {[%emt 0:05:51]} h4 {[%emt 0:01:32]} 29. g4 {[%emt 0:00:20]} Ng3 {[%emt 0:02:01]} 30. fxg3 {[%emt 0:00:14]} hxg3 {[%emt 0:00:06]} 31. Qc2 {[%emt 0:00:05]} Qxe3+ {[%emt 0:00:34]} 32. Kg2 {[%emt 0:00:04]} Bf6 {[%emt 0:02:03]} 33. Nd6 {[%emt 0:01:08]} a5 {[%emt 0:01:06]} 34. Bxg6 {[%emt 0:00:27]} e4 {[%emt 0:00:17]} 35. Nf5+ {[%emt 0:00:07]} 1-0

[Event "95th Caplin Hastings Congress"]
[Site "Hastings"]
[Date "2019.12.28"]
[Round "1.12"]
[White "Brozel, Sacha"]
[Black "Swayams, Mishra"]
[Result "0-1"]
[ECO "A07"]
[WhiteElo "2188"]
[BlackElo "2479"]
[Annotator "ChessBase"]
[PlyCount "72"]
[EventDate "2019.12.28"]
[EventType "swiss"]
[EventCountry "ENG"]
[SourceTitle "playchess.com"]
[Source "ChessBase"]
[SourceQuality "1"]
[TimeControl "40/6600+30:3000+30"]

1. g3 {[%emt 0:09:53]} d5 {[%emt 0:14:26]} 2. Nf3 {[%emt 0:00:11]} Bg4 {[%emt 0:00:29]} 3. Bg2 {[%emt 0:00:48]} Nd7 {[%emt 0:00:21]} 4. c4 {[%emt 0:00:43]} dxc4 {[%emt 0:01:08]} 5. Na3 {[%emt 0:02:33]} g6 {[%emt 0:10:36]} 6. Nxc4 {[%emt 0:01:34]} c6 {[%emt 0:01:23]} 7. O-O {[%emt 0:13:57]} Bg7 {[%emt 0:00:40]} 8. d4 {[%emt 0:03:54]} Ngf6 {[%emt 0:00:54]} 9. Ne3 {[%emt 0:19:28]} Bxf3 {[%emt 0:03:21]} 10. Bxf3 {[%emt 0:00:13]} Nb6 {[%emt 0:01:41]} 11. b3 {[%emt 0:07:32]} O-O {[%emt 0:03:24]} 12. Bb2 {[%emt 0:00:43]} Qd7 {[%emt 0:11:03]} 13. Qc2 {[%emt 0:03:03]} Rfd8 {[%emt 0:02:11]} 14. Rad1 {[%emt 0:02:10]} Qh3 {[%emt 0:04:39]} 15. Qc5 {[%emt 0:07:37]} Qe6 {[%emt 0:02:15]} 16. Rd3 {[%emt 0:06:05]} Ne4 {[%emt 0:03:33]} 17. Qc2 {[%emt 0:01:42]} Nd5 {[%emt 0:02:34]} 18. a3 {[%emt 0:04:51]} f5 {[%emt 0:05:08]} 19. Rfd1 {[%emt 0:07:06]} Rac8 {[%emt 0:03:00]} 20. Qb1 {[%emt 0:02:13]} Rc7 {[%emt 0:07:37]} 21. Bg2 {[%emt 0:00:39]} Rcd7 {[%emt 0:00:52]} 22. Nxd5 {[%emt 0:01:46]} cxd5 {[%emt 0:00:41]} 23. Rc1 {[%emt 0:00:26]} h5 {[%emt 0:00:54]} 24. h4 {[%emt 0:01:01]} Bh6 {[%emt 0:05:42]} 25. e3 {[%emt 0:01:51]} g5 {[%emt 0:01:06]} 26. hxg5 {[%emt 0:01:01]} Bxg5 {[%emt 0:00:03]} 27. Rc2 {[%emt 0:03:19]} h4 {[%emt 0:00:21]} 28. f4 {[%emt 0:00:31]} Bf6 {[%emt 0:03:46]} 29. gxh4 {[%emt 0:00:22]} Bxh4 {[%emt 0:02:20]} 30. Bxe4 {[%emt 0:01:35]} Qxe4 {[%emt 0:00:06]} 31. Rg2+ {[%emt 0:01:46]} Kf7 {[%emt 0:00:14]} 32. Qd1 {[%emt 0:01:19]} Rh8 {[%emt 0:01:49]} 33. Rc3 {[%emt 0:08:17]} Ke6 {[%emt 0:01:52]} 34. Qc2 {[%emt 0:01:34]} Qf3 {[%emt 0:00:43]} 35. Rc8 {[%emt 0:02:21]} Qxe3+ {[%emt 0:01:53]} 36. Kh1 {[%emt 0:01:25]} Qe1+ {[%emt 0:01:21]} 0-1

[Event "95th Caplin Hastings Congress"]
[Site "Hastings"]
[Date "2019.12.28"]
[Round "1.13"]
[White "Bagi, Mate"]
[Black "Bin-Suhayl, Ieysaa"]
[Result "1-0"]
[ECO "C11"]
[WhiteElo "2469"]
[BlackElo "2187"]
[Annotator "ChessBase"]
[PlyCount "169"]
[EventDate "2019.12.28"]
[EventType "swiss"]
[EventCountry "ENG"]
[SourceTitle "playchess.com"]
[Source "ChessBase"]
[SourceQuality "1"]
[TimeControl "40/6600+30:3000+30"]

1. e4 {[%emt 0:09:35]} e6 {[%emt 0:09:41]} 2. d4 {[%emt 0:00:22]} d5 {[%emt 0:00:04]} 3. Nc3 {[%emt 0:00:35]} Nf6 {[%emt 0:00:12]} 4. e5 {[%emt 0:00:21]} Nfd7 {[%emt 0:00:04]} 5. f4 {[%emt 0:01:30]} c5 {[%emt 0:00:05]} 6. Nf3 {[%emt 0:00:07]} Nc6 {[%emt 0:00:06]} 7. Be3 {[%emt 0:00:16]} a6 {[%emt 0:00:07]} 8. Qd2 {[%emt 0:03:49]} b5 {[%emt 0:00:18]} 9. Bd3 {[%emt 0:04:53]} Qb6 {[%emt 0:04:50]} 10. dxc5 {[%emt 0:06:06]} Bxc5 {[%emt 0:00:46]} 11. Bf2 {[%emt 0:00:15]} Bxf2+ {[%emt 0:02:08]} 12. Qxf2 {[%emt 0:00:08]} Qxf2+ {[%emt 0:01:02]} 13. Kxf2 {[%emt 0:00:08]} O-O {[%emt 0:00:30]} 14. Rhe1 {[%emt 0:29:24]} Nc5 {[%emt 0:03:20]} 15. a3 {[%emt 0:10:16]} b4 {[%emt 0:07:16]} 16. Ne2 {[%emt 0:06:54]} f6 {[%emt 0:08:03]} 17. Kg3 {[%emt 0:06:39]} Bd7 {[%emt 0:17:23]} 18. Ned4 {[%emt 0:02:39]} Nxd4 {[%emt 0:00:32]} 19. Nxd4 {[%emt 0:00:08]} Rfb8 {[%emt 0:04:33]} 20. Kf3 {[%emt 0:06:23]} bxa3 {[%emt 0:06:08]} 21. bxa3 {[%emt 0:02:20]} Rb2 {[%emt 0:02:27]} 22. Reb1 {[%emt 0:01:52]} Rab8 {[%emt 0:08:02]} 23. Rxb2 {[%emt 0:00:26]} Rxb2 {[%emt 0:00:12]} 24. Ke3 {[%emt 0:00:32]} h6 {[%emt 0:02:21]} 25. g4 {[%emt 0:03:34]} Kf7 {[%emt 0:15:24]} 26. h4 {[%emt 0:01:00]} Ke7 {[%emt 0:05:29]} 27. g5 {[%emt 0:03:12]} hxg5 {[%emt 0:00:30]} 28. hxg5 {[%emt 0:00:15]} f5 {[%emt 0:00:21]} 29. Kd2 {[%emt 0:02:56]} Be8 {[%emt 0:07:38]} 30. Kc3 {[%emt 0:01:20]} Na4+ {[%emt 0:00:06]} 31. Kd2 {[%emt 0:00:05]} Nc5 {[%emt 0:00:02]} 32. Be2 {[%emt 0:03:00]} a5 {[%emt 0:04:05]} 33. Rh1 {[%emt 0:00:44]} Kf8 {[%emt 0:07:28]} 34. Kc1 {[%emt 0:01:33]} Ra2 {[%emt 0:02:13]} 35. Rh3 {[%emt 0:00:12]} Ra1+ {[%emt 0:00:58]} 36. Kb2 {[%emt 0:00:15]} Re1 {[%emt 0:00:21]} 37. Ka2 {[%emt 0:00:48]} Bd7 {[%emt 0:02:41]} 38. Rc3 {[%emt 0:01:45]} Ne4 {[%emt 0:00:03]} 39. Rc7 {[%emt 0:01:00]} Ke8 {[%emt 0:00:07]} 40. Bb5 {[%emt 0:02:53]} Bxb5 {[%emt 0:00:21]} 41. Nxb5 {[%emt 0:06:01]} Rf1 {[%emt 0:10:42]} 42. Nd4 {[%emt 0:06:33]} Rxf4 {[%emt 0:00:00]} 43. Nxe6 {[%emt 0:00:15]} Rg4 {[%emt 0:04:05]} 44. Nxg7+ {[%emt 0:00:30]} Kd8 {[%emt 0:00:05]} 45. Ra7 {[%emt 0:05:08]} Nxg5 {[%emt 0:10:29]} 46. e6 {[%emt 0:12:06]} Re4 {[%emt 0:00:20]} 47. Rd7+ {[%emt 0:00:41]} Kc8 {[%emt 0:00:11]} 48. Rd6 {[%emt 0:00:44]} Nxe6 {[%emt 0:04:01]} 49. Rxd5 {[%emt 0:00:49]} f4 {[%emt 0:00:30]} 50. Nf5 {[%emt 0:00:30]} Re2 {[%emt 0:00:30]} 51. Kb2 {[%emt 0:00:30]} a4 {[%emt 0:00:30]} 52. Ra5 {[%emt 0:00:30]} Kc7 {[%emt 0:00:30]} 53. Rxa4 {[%emt 0:00:30]} Re5 {[%emt 0:00:30]} 54. Ng3 {[%emt 0:01:54]} Nc5 {[%emt 0:00:00]} 55. Rxf4 {[%emt 0:00:30]} Kb6 {[%emt 0:00:29]} 56. Nf5 {[%emt 0:00:30]} Re2 {[%emt 0:00:30]} 57. Kc3 {[%emt 0:00:30]} Rh2 {[%emt 0:00:30]} 58. Nd4 {[%emt 0:02:26]} Rh3+ {[%emt 0:01:15]} 59. Rf3 {[%emt 0:00:26]} Rxf3+ {[%emt 0:02:54]} 60. Nxf3 {[%emt 0:00:06]} Kb5 {[%emt 0:00:23]} 61. Nd2 {[%emt 0:01:04]} Ka4 {[%emt 0:02:07]} 62. Nb1 {[%emt 0:00:34]} Kb5 {[%emt 0:02:17]} 63. Kd4 {[%emt 0:01:06]} Ne6+ {[%emt 0:00:07]} 64. Kd3 {[%emt 0:01:19]} Nc5+ {[%emt 0:05:35]} 65. Kc3 {[%emt 0:00:06]} Ne6 {[%emt 0:03:04]} 66. Nd2 {[%emt 0:01:00]} Ka4 {[%emt 0:00:20]} 67. Kb2 {[%emt 0:00:20]} Nc5 {[%emt 0:06:42]} 68. Nb3 {[%emt 0:01:07]} Ne4 {[%emt 0:03:50]} 69. c4 {[%emt 0:00:33]} Nd6 {[%emt 0:00:03]} 70. Nc5+ {[%emt 0:00:06]} Ka5 {[%emt 0:00:03]} 71. Kb3 {[%emt 0:00:47]} Nf5 {[%emt 0:01:22]} 72. Nd3 {[%emt 0:00:35]} Nd4+ {[%emt 0:03:25]} 73. Kc3 {[%emt 0:00:06]} Ne2+ {[%emt 0:00:33]} 74. Kd2 {[%emt 0:00:07]} Nd4 {[%emt 0:00:23]} 75. Nb2 {[%emt 0:00:07]} Ne6 {[%emt 0:00:44]} 76. Kc3 {[%emt 0:00:14]} Nc5 {[%emt 0:00:21]} 77. Kd4 {[%emt 0:00:34]} Ne6+ {[%emt 0:00:24]} 78. Kd5 {[%emt 0:00:30]} Nc7+ {[%emt 0:00:30]} 79. Kd6 {[%emt 0:00:30]} Na6 {[%emt 0:00:30]} 80. c5 {[%emt 0:02:33]} Kb5 {[%emt 0:00:00]} 81. a4+ {[%emt 0:03:27]} Ka5 {[%emt 0:00:57]} 82. c6 {[%emt 0:00:11]} Kb6 {[%emt 0:00:16]} 83. Nd3 {[%emt 0:01:08]} Ka7 {[%emt 0:01:04]} 84. Nc5 {[%emt 0:00:21]} Nb4 {[%emt 0:00:07]} 85. c7 {[%emt 0:00:08]} 1-0

[Event "95th Caplin Hastings Congress"]
[Site "Hastings"]
[Date "2019.12.28"]
[Round "1.14"]
[White "Gallagher, Daniel GH"]
[Black "Williams, Simon K"]
[Result "0-1"]
[ECO "B88"]
[WhiteElo "2171"]
[BlackElo "2461"]
[Annotator "ChessBase"]
[PlyCount "98"]
[EventDate "2019.12.28"]
[EventType "swiss"]
[EventCountry "ENG"]
[SourceTitle "playchess.com"]
[Source "ChessBase"]
[SourceQuality "1"]
[TimeControl "40/6600+30:3000+30"]

1. e4 {[%emt 0:09:34]} c5 {[%emt 0:11:23]} 2. Nf3 {[%emt 0:00:21]} Nc6 {[%emt 0:01:01]} 3. Nc3 {[%emt 0:05:50]} Nf6 {[%emt 0:02:30]} 4. d4 {[%emt 0:00:35]} cxd4 {[%emt 0:00:10]} 5. Nxd4 {[%emt 0:00:06]} d6 {[%emt 0:00:41]} 6. Bc4 {[%emt 0:00:24]} e6 {[%emt 0:01:03]} 7. Be3 {[%emt 0:02:56]} a6 {[%emt 0:00:40]} 8. Bb3 {[%emt 0:01:17]} Bd7 {[%emt 0:01:49]} 9. f4 {[%emt 0:06:39]} b5 {[%emt 0:04:53]} 10. f5 {[%emt 0:29:29]} Nxd4 {[%emt 0:04:28]} 11. Bxd4 {[%emt 0:10:18]} b4 {[%emt 0:01:08]} 12. fxe6 {[%emt 0:00:27]} fxe6 {[%emt 0:00:11]} 13. Ne2 {[%emt 0:01:34]} e5 {[%emt 0:06:45]} 14. Be3 {[%emt 0:00:50]} Bc6 {[%emt 0:00:49]} 15. Ng3 {[%emt 0:10:04]} h5 {[%emt 0:05:09]} 16. O-O {[%emt 0:05:14]} h4 {[%emt 0:02:52]} 17. Nh5 {[%emt 0:04:15]} h3 {[%emt 0:13:11]} 18. Nxf6+ {[%emt 0:08:27]} gxf6 {[%emt 0:00:06]} 19. Qg4 {[%emt 0:01:00]} hxg2 {[%emt 0:06:02]} 20. Rf2 {[%emt 0:04:15]} Qe7 {[%emt 0:02:41]} 21. Rxg2 {[%emt 0:04:40]} Qh7 {[%emt 0:02:07]} 22. Qe6+ {[%emt 0:02:32]} Be7 {[%emt 0:00:25]} 23. Bd5 {[%emt 0:07:05]} Bd7 {[%emt 0:01:23]} 24. Rg8+ {[%emt 0:00:04]} Rxg8+ {[%emt 0:00:06]} 25. Qxg8+ {[%emt 0:00:02]} Qxg8+ {[%emt 0:00:09]} 26. Bxg8 {[%emt 0:00:02]} Bc6 {[%emt 0:01:39]} 27. Bh7 {[%emt 0:00:44]} Kf7 {[%emt 0:00:14]} 28. Rd1 {[%emt 0:00:34]} Bd7 {[%emt 0:06:02]} 29. Bf5 {[%emt 0:04:27]} Bxf5 {[%emt 0:00:08]} 30. exf5 {[%emt 0:00:04]} Rh8 {[%emt 0:00:03]} 31. Bb6 {[%emt 0:00:45]} Rh5 {[%emt 0:00:42]} 32. Ba5 {[%emt 0:00:36]} Rg5+ {[%emt 0:00:12]} 33. Kh1 {[%emt 0:00:27]} Rxf5 {[%emt 0:01:49]} 34. Bxb4 {[%emt 0:00:04]} Rf2 {[%emt 0:03:08]} 35. Rd2 {[%emt 0:00:12]} Rxd2 {[%emt 0:00:07]} 36. Bxd2 {[%emt 0:00:04]} d5 {[%emt 0:00:04]} 37. Kg2 {[%emt 0:01:50]} f5 {[%emt 0:00:04]} 38. a4 {[%emt 0:00:16]} Ke6 {[%emt 0:00:32]} 39. b4 {[%emt 0:00:17]} f4 {[%emt 0:00:33]} 40. b5 {[%emt 0:00:28]} axb5 {[%emt 0:00:36]} 41. axb5 {[%emt 0:50:07]} Bc5 {[%emt 0:51:27]} 42. Ba5 {[%emt 0:00:00]} e4 {[%emt 0:00:00]} 43. b6 {[%emt 0:00:00]} f3+ {[%emt 0:00:00]} 44. Kf1 {[%emt 0:00:00]} Bd6 {[%emt 0:00:00]} 45. h4 {[%emt 0:00:00]} e3 {[%emt 0:00:00]} 46. Be1 {[%emt 0:00:00]} Kf5 {[%emt 0:00:00]} 47. b7 {[%emt 0:00:00]} d4 {[%emt 0:00:00]} 48. Kg1 {[%emt 0:00:00]} Kg4 {[%emt 0:00:00]} 49. Kf1 {[%emt 0:00:00]} Bh2 {[%emt 0:00:00]} 0-1

[Event "95th Caplin Hastings Congress"]
[Site "Hastings"]
[Date "2019.12.28"]
[Round "1.15"]
[White "Arkell, Keith C"]
[Black "Anderson, John"]
[Result "1-0"]
[ECO "D36"]
[WhiteElo "2453"]
[BlackElo "2163"]
[Annotator "ChessBase"]
[PlyCount "97"]
[EventDate "2019.12.28"]
[EventType "swiss"]
[EventCountry "ENG"]
[SourceTitle "playchess.com"]
[Source "ChessBase"]
[SourceQuality "1"]
[TimeControl "40/6600+30:3000+30"]

1. Nf3 {[%emt 0:09:37]} d5 {[%emt 0:10:03]} 2. c4 {[%emt 0:00:06]} e6 {[%emt 0:01:16]} 3. cxd5 {[%emt 0:00:07]} exd5 {[%emt 0:00:09]} 4. d4 {[%emt 0:00:03]} c6 {[%emt 0:02:04]} 5. Nc3 {[%emt 0:00:07]} Nf6 {[%emt 0:00:04]} 6. Qc2 {[%emt 0:00:05]} g6 {[%emt 0:01:49]} 7. Bg5 {[%emt 0:00:05]} Be7 {[%emt 0:01:03]} 8. Bxf6 {[%emt 0:00:24]} Bxf6 {[%emt 0:00:05]} 9. e3 {[%emt 0:00:03]} Bf5 {[%emt 0:02:31]} 10. Bd3 {[%emt 0:00:06]} Bxd3 {[%emt 0:00:04]} 11. Qxd3 {[%emt 0:00:04]} O-O {[%emt 0:02:43]} 12. b4 {[%emt 0:00:05]} Nd7 {[%emt 0:01:23]} 13. b5 {[%emt 0:00:17]} c5 {[%emt 0:06:46]} 14. Nxd5 {[%emt 0:00:16]} cxd4 {[%emt 0:00:06]} 15. Nxf6+ {[%emt 0:00:47]} Nxf6 {[%emt 0:00:15]} 16. Nxd4 {[%emt 0:00:33]} Qd6 {[%emt 0:03:12]} 17. O-O {[%emt 0:08:14]} Rfe8 {[%emt 0:02:45]} 18. Rfd1 {[%emt 0:03:18]} Rad8 {[%emt 0:00:13]} 19. h3 {[%emt 0:03:08]} Re5 20. Rac1 {[%emt 0:02:24]} Rd5 21. Rc2 {[%emt 0:10:29]} h5 {[%emt 0:01:03]} 22. Rdc1 {[%emt 0:02:27]} Rd7 {[%emt 0:16:22]} 23. Rc8+ {[%emt 0:01:25]} Kg7 {[%emt 0:00:37]} 24. Qc2 {[%emt 0:00:00]} Qe5 {[%emt 0:09:34]} 25. Ra8 {[%emt 0:00:00]} b6 {[%emt 0:04:30]} 26. Qc8 {[%emt 0:00:00]} Rd8 {[%emt 0:00:18]} 27. Qxd8 {[%emt 0:00:00]} Rxd8 {[%emt 0:00:12]} 28. Rxd8 {[%emt 0:00:00]} Qe7 {[%emt 0:08:59]} 29. Rdc8 {[%emt 0:05:04]} Qa3 {[%emt 0:04:25]} 30. R1c2 {[%emt 0:18:04]} Ne4 {[%emt 0:02:50]} 31. R8c7 {[%emt 0:06:21]} Nc5 {[%emt 0:03:06]} 32. g3 {[%emt 0:01:54]} Qa4 {[%emt 0:04:22]} 33. Kh2 {[%emt 0:00:53]} Kf6 {[%emt 0:01:15]} 34. h4 {[%emt 0:00:58]} Kg7 {[%emt 0:05:21]} 35. Kg2 {[%emt 0:02:10]} Kf6 {[%emt 0:00:39]} 36. Re2 {[%emt 0:04:06]} Kg7 {[%emt 0:05:40]} 37. Rd2 {[%emt 0:01:25]} Ne4 {[%emt 0:02:10]} 38. Ne6+ {[%emt 0:03:46]} Kf6 {[%emt 0:04:50]} 39. Rd4 {[%emt 0:02:17]} Qxa2 {[%emt 0:02:23]} 40. Rxe4 {[%emt 0:00:12]} fxe6 {[%emt 0:00:05]} 41. Rf4+ {[%emt 0:53:25]} Ke5 {[%emt 0:50:23]} 42. Rd7 {[%emt 0:00:15]} Qa5 {[%emt 0:03:18]} 43. Rff7 {[%emt 0:05:27]} Qxb5 {[%emt 0:01:09]} 44. Rd4 {[%emt 0:03:03]} Qe2 {[%emt 0:00:12]} 45. Rxa7 {[%emt 0:00:26]} g5 {[%emt 0:04:31]} 46. hxg5 {[%emt 0:00:45]} Kf5 {[%emt 0:00:06]} 47. Rf4+ {[%emt 0:01:35]} Kxg5 {[%emt 0:00:03]} 48. Rg7+ {[%emt 0:00:12]} Kh6 {[%emt 0:00:03]} 49. Re7 {[%emt 0:01:18]} 1-0

[Event "95th Caplin Hastings Congress"]
[Site "Hastings"]
[Date "2019.12.28"]
[Round "1.16"]
[White "Sucikova, Svetlana"]
[Black "Flear, Glenn C"]
[Result "1/2-1/2"]
[ECO "A13"]
[WhiteElo "2160"]
[BlackElo "2440"]
[Annotator "ChessBase"]
[PlyCount "98"]
[EventDate "2019.12.28"]
[EventType "swiss"]
[EventCountry "ENG"]
[SourceTitle "playchess.com"]
[Source "ChessBase"]
[SourceQuality "1"]
[TimeControl "40/6600+30:3000+30"]

1. c4 {[%emt 0:10:32]} e6 {[%emt 0:09:53]} 2. g3 {[%emt 0:00:27]} d5 {[%emt 0:00:31]} 3. Bg2 {[%emt 0:00:19]} Nf6 {[%emt 0:02:28]} 4. Nf3 {[%emt 0:00:30]} dxc4 {[%emt 0:01:33]} 5. Qa4+ {[%emt 0:00:33]} c6 {[%emt 0:00:32]} 6. Qxc4 {[%emt 0:00:14]} b5 {[%emt 0:00:12]} 7. Qb3 {[%emt 0:00:07]} Bb7 {[%emt 0:02:32]} 8. O-O {[%emt 0:01:33]} Be7 {[%emt 0:01:44]} 9. Ne5 {[%emt 0:05:20]} O-O {[%emt 0:05:46]} 10. Rd1 {[%emt 0:01:36]} Qd4 {[%emt 0:07:45]} 11. Qc3 {[%emt 0:04:53]} Qb6 {[%emt 0:03:05]} 12. b3 {[%emt 0:15:31]} c5 {[%emt 0:03:27]} 13. Bb2 {[%emt 0:00:42]} Rd8 {[%emt 0:04:40]} 14. a4 {[%emt 0:07:32]} Bxg2 {[%emt 0:09:25]} 15. Kxg2 {[%emt 0:00:22]} Nc6 {[%emt 0:00:43]} 16. Qf3 {[%emt 0:12:16]} Nxe5 {[%emt 0:03:54]} 17. Bxe5 {[%emt 0:02:48]} c4 {[%emt 0:06:41]} 18. bxc4 {[%emt 0:04:58]} bxc4 {[%emt 0:01:24]} 19. Nc3 {[%emt 0:00:08]} Qc5 {[%emt 0:03:58]} 20. Bxf6 {[%emt 0:10:46]} gxf6 {[%emt 0:04:22]} 21. Rab1 {[%emt 0:00:08]} Rab8 {[%emt 0:05:52]} 22. Qf4 {[%emt 0:05:05]} Rb6 {[%emt 0:14:32]} 23. Rxb6 {[%emt 0:00:53]} axb6 {[%emt 0:00:34]} 24. Rb1 {[%emt 0:00:44]} f5 {[%emt 0:10:13]} 25. Rb5 {[%emt 0:05:14]} Qc6+ {[%emt 0:03:04]} 26. Kg1 {[%emt 0:00:03]} Bf6 {[%emt 0:01:19]} 27. Qe3 {[%emt 0:09:50]} Rd4 {[%emt 0:05:08]} 28. Qh6 {[%emt 0:06:41]} Bg7 {[%emt 0:00:40]} 29. Qg5 {[%emt 0:00:02]} h6 {[%emt 0:02:01]} 30. Qe3 {[%emt 0:00:54]} Kh7 {[%emt 0:01:36]} 31. Nb1 {[%emt 0:00:45]} Qd6 {[%emt 0:01:09]} 32. Qc3 {[%emt 0:07:46]} Re4 {[%emt 0:02:04]} 33. Qf3 {[%emt 0:00:36]} Bd4 {[%emt 0:01:44]} 34. e3 {[%emt 0:01:49]} Bc5 {[%emt 0:01:00]} 35. Qe2 {[%emt 0:01:07]} Rg4 {[%emt 0:00:47]} 36. h3 {[%emt 0:01:31]} Rg8 {[%emt 0:00:32]} 37. Qxc4 {[%emt 0:00:28]} f4 {[%emt 0:00:53]} 38. Qxf4 {[%emt 0:03:18]} Qxf4 {[%emt 0:00:13]} 39. exf4 {[%emt 0:00:01]} Rxg3+ {[%emt 0:00:18]} 40. Kh2 {[%emt 0:01:14]} Bxf2 {[%emt 0:00:14]} 41. Rxb6 {[%emt 0:03:05]} Rd3 {[%emt 0:14:09]} 42. Rb4 {[%emt 0:03:18]} Be1 {[%emt 0:02:19]} 43. a5 {[%emt 0:09:27]} Bxd2 {[%emt 0:00:20]} 44. Nxd2 {[%emt 0:04:42]} Rxd2+ {[%emt 0:00:09]} 45. Kg3 {[%emt 0:00:06]} Ra2 {[%emt 0:00:39]} 46. Rb5 {[%emt 0:00:52]} Kg6 {[%emt 0:00:33]} 47. Kh4 {[%emt 0:03:32]} Ra4 {[%emt 0:02:17]} 48. Kg3 {[%emt 0:00:22]} Ra3+ {[%emt 0:00:10]} 49. Kg2 {[%emt 0:03:25]} Ra2+ {[%emt 0:00:26]} 1/2-1/2